{"text_format":"3","workbook":"xlsx","n_sheets":4,"sheets":["ZAČETEK","PARAMETRI PROJEKTA","PODROBNOSTI PROJEKTA","SKUPNE VRENDOSTI PROJEKTA"],"not_rendered":{"charts":2,"defined_names":3,"pivot_tables":1},"read":"whole","date_system":"1900"}

{"sheet":"ZAČETEK","index":0,"n_rows":7,"n_cols":2,"rows_kept":7}
[null,"O TEJ PREDLOGI"]
[null,"V delovnem zvezku »Sledilnik načrtovanja projekta« lahko spremljajte parametre projekta, podrobnosti projekta in skupne stroške projekta."]
[null,"Vnesite informacije v delovni zvezek »Parametri projekta«, da posodobite stolpčne grafikone, in v delovni zvezek »Podrobnosti projekta«. Vrtilna tabela na delovnem listu »Skupni stroški projekta« je samodejno posodobljena."]
[null,"Vnesite ime podjetja na delovni list »Parametri«, da bodo samodejno posodobljeni na drugih delovnih listih."]
[null,"Opomba:  "]
[null,"Dodatna navodila so na voljo v stolpcu A na vsakem delovnem listu v delovnem zvezku SLEDILNIK NAČRTOVANJA PROJEKTA. To besedilo je bilo skrito namenoma. Če želite besedilo premakniti, izberite stolpec A, nato izberite še IZBRIŠI. Če želite besedilo razkriti, izberite stolpec A, nato zamenjajte barvo pisave."]
[null,"Če želite izvedeti več o tabelah na delovnem list, znotraj tabele pritisnite SHIFT in F10, izberite možnost TABELA, nato pa izberite NADOMESTNO BESEDILO."]

{"sheet":"PARAMETRI PROJEKTA","index":1,"n_rows":19,"n_cols":9,"rows_kept":19,"merged":[[23,1,42,3]]}
[null,"Ime podjetja"]
[null,"Upravljanje dogodka – sledilnik projektov"]
[null,{"$f":"B1&\" Zaupno\"","v":"Ime podjetja Zaupno"}]
[null,"Vrednosti v senčenih celicah so izračunane namesto vas. V te celice vam ni treba vnašati ničesar."]
[null,"VRSTA PROJEKTA","UPRAVITELJ RAČUNOV","VODJA PROJEKTA","VODJA STRATEGIJE","STROKOVNJAK ZA DIZAJN","OSEBJE DOGODKA","SKRBNIŠKO OSEBJE","Vsota"]
[null,"Razvoj strategije dogodka",{"v":0.2,"d":"20%"},{"v":0.1,"d":"10%"},{"v":0.6,"d":"60%"},{"v":0,"d":"0%"},{"v":0,"d":"0%"},{"v":0.1,"d":"10%"},{"$f":"SUM(Parametri[[#This Row],[UPRAVITELJ RAČUNOV]:[SKRBNIŠKO OSEBJE]])","v":{"v":1,"d":"100%"}}]
[null,"Načrtovanje dogodka",{"v":0.2,"d":"20%"},{"v":0.5,"d":"50%"},{"v":0.1,"d":"10%"},{"v":0.1,"d":"10%"},{"v":0,"d":"0%"},{"v":0.1,"d":"10%"},{"$f":"SUM(Parametri[[#This Row],[UPRAVITELJ RAČUNOV]:[SKRBNIŠKO OSEBJE]])","v":{"v":0.9999999999999999,"d":"100%"}}]
[null,"Dizajn dogodka",{"v":0.2,"d":"20%"},{"v":0.2,"d":"20%"},{"v":0,"d":"0%"},{"v":0.5,"d":"50%"},{"v":0,"d":"0%"},{"v":0.1,"d":"10%"},{"$f":"SUM(Parametri[[#This Row],[UPRAVITELJ RAČUNOV]:[SKRBNIŠKO OSEBJE]])","v":{"v":1,"d":"100%"}}]
[null,"Logistika dogodka",{"v":0.2,"d":"20%"},{"v":0.6,"d":"60%"},{"v":0,"d":"0%"},{"v":0,"d":"0%"},{"v":0.1,"d":"10%"},{"v":0.1,"d":"10%"},{"$f":"SUM(Parametri[[#This Row],[UPRAVITELJ RAČUNOV]:[SKRBNIŠKO OSEBJE]])","v":{"v":1,"d":"100%"}}]
[null,"Osebje dogodka",{"v":0.2,"d":"20%"},{"v":0.1,"d":"10%"},{"v":0,"d":"0%"},{"v":0,"d":"0%"},{"v":0.6,"d":"60%"},{"v":0.1,"d":"10%"},{"$f":"SUM(Parametri[[#This Row],[UPRAVITELJ RAČUNOV]:[SKRBNIŠKO OSEBJE]])","v":{"v":1,"d":"100%"}}]
[null,"Ocena dogodka",{"v":0.2,"d":"20%"},{"v":0.2,"d":"20%"},{"v":0.2,"d":"20%"},{"v":0.2,"d":"20%"},{"v":0,"d":"0%"},{"v":0.2,"d":"20%"},{"$f":"SUM(Parametri[[#This Row],[UPRAVITELJ RAČUNOV]:[SKRBNIŠKO OSEBJE]])","v":{"v":1,"d":"100%"}}]
[null,"Mešane tarife",{"v":180,"d":"180 €"},{"v":120,"d":"120 €"},{"v":150,"d":"150 €"},{"v":100,"d":"100 €"},{"v":80,"d":"80 €"},{"v":60,"d":"60 €"}]
[]
[{"$nulls":5},"Stolpčni grafikon, ki prikazuje načrtovane in dejanske ure, je v tej celici."]
[null,null,"UPRAVITELJ RAČUNOV","VODJA PROJEKTA","VODJA STRATEGIJE","STROKOVNJAK ZA DIZAJN","OSEBJE DOGODKA","SKRBNIŠKO OSEBJE"]
[null,"NAČRTOVANI STROŠKI",{"$f":"SUBTOTAL(109,PodrobnostiProjekta[UPRAVITELJ RAČUNOV])","v":{"v":54000,"d":"54,000.00 €"}},{"$f":"SUBTOTAL(109,PodrobnostiProjekta[VODJA PROJEKTA])","v":{"v":52200,"d":"52,200.00 €"}},{"$f":"SUBTOTAL(109,PodrobnostiProjekta[VODJA STRATEGIJE])","v":{"v":24000,"d":"24,000.00 €"}},{"$f":"SUBTOTAL(109,PodrobnostiProjekta[STROKOVNJAK ZA DIZAJN])","v":{"v":29000,"d":"29,000.00 €"}},{"$f":"SUBTOTAL(109,PodrobnostiProjekta[OSEBJE DOGODKA])","v":{"v":13200,"d":"13,200.00 €"}},{"$f":"SUBTOTAL(109,PodrobnostiProjekta[SKRBNIŠKO OSEBJE])","v":{"v":9000,"d":"9,000.00 €"}}]
[null,"DEJANSKI STROŠKI",{"$f":"SUBTOTAL(109,PodrobnostiProjekta[[UPRAVITELJ RAČUNOV ]])","v":{"v":54360,"d":"54,360.00 €"}},{"$f":"SUBTOTAL(109,PodrobnostiProjekta[[VODJA PROJEKTA ]])","v":{"v":51540,"d":"51,540.00 €"}},{"$f":"SUBTOTAL(109,PodrobnostiProjekta[[VODJA STRATEGIJE ]])","v":{"v":25650,"d":"25,650.00 €"}},{"$f":"SUBTOTAL(109,PodrobnostiProjekta[[STROKOVNJAK ZA DIZAJN ]])","v":{"v":28900,"d":"28,900.00 €"}},{"$f":"SUBTOTAL(109,PodrobnostiProjekta[[OSEBJE DOGODKA ]])","v":{"v":13400,"d":"13,400.00 €"}},{"$f":"SUBTOTAL(109,PodrobnostiProjekta[[SKRBNIŠKO OSEBJE ]])","v":{"v":9060,"d":"9,060.00 €"}}]
[null,"NAČRTOVANE URE",{"$f":"C16/$C$12","v":{"v":300,"d":"300.00"}},{"$f":"D16/$C$12","v":{"v":290,"d":"290.00"}},{"v":133.33333333333334,"d":"133.33"},{"v":161.11111111111111,"d":"161.11"},{"v":73.33333333333333,"d":"73.33"},{"v":50,"d":"50.00"}]
[null,"DEJANSKE URE",{"$f":"C17/$C$12","v":{"v":302,"d":"302.00"}},{"$f":"D17/$C$12","v":{"v":286.3333333333333,"d":"286.33"}},{"$f":"E17/$C$12","v":{"v":142.5,"d":"142.50"}},{"$f":"F17/$C$12","v":{"v":160.55555555555554,"d":"160.56"}},{"$f":"G17/$C$12","v":{"v":74.44444444444444,"d":"74.44"}},{"$f":"H17/$C$12","v":{"v":50.333333333333336,"d":"50.33"}}]

{"sheet":"PODROBNOSTI PROJEKTA","index":2,"n_rows":10,"n_cols":23,"rows_kept":10}
[null,{"$f":"'PARAMETRI PROJEKTA'!B1","v":"Ime podjetja"}]
[null,"Upravljanje dogodka – sledilnik projektov"]
[null,{"$f":"'PARAMETRI PROJEKTA'!B3","v":"Ime podjetja Zaupno"}]
["Vnesite informacije v tabelo »Podrobnosti projekta« z začetkom v celici na desni.\nINFORMACIJE\nČe želite dodati vrstico v tabelo na desni, izberite celico spodaj desno v telesu tabele (ne v vrstici s skupnimi vrednostmi) in pritisnite tabulatorko ali pa pritisnite SHIFT+F10, kjer želite vstaviti vrstico, in izberite »Vstavi | Vrstice tabele zgoraj/spodaj«.\nPoskrbite, da bodo vse neuporabljene vrstice izbrisane, saj bo funkcija »SKUPNE VREDNOSTI PROJEKTA vrtilne tabele« uporabila vse celice tabele, kar bi pomenilo napačne rezultate.","IME PROJEKTA","VRSTA PROJEKTA","PREDVIDEN ZAČETEK","PREDVIDEN ZAKLJUČEK","DEJANSKI ZAČETEK","DEJANSKI ZAKLJUČEK","PREDVIDENO DELO","DEJANSKO DELO","PREDVIDENO TRAJANJE","DEJANSKO TRAJANJE","UPRAVITELJ RAČUNOV","VODJA PROJEKTA","VODJA STRATEGIJE","STROKOVNJAK ZA DIZAJN","OSEBJE DOGODKA","SKRBNIŠKO OSEBJE","UPRAVITELJ RAČUNOV ","VODJA PROJEKTA ","VODJA STRATEGIJE ","STROKOVNJAK ZA DIZAJN ","OSEBJE DOGODKA ","SKRBNIŠKO OSEBJE "]
[null,"Projekt 1","Razvoj strategije dogodka",{"$f":"DATE(YEAR(TODAY()),6,9)","v":"2022-06-09"},{"$f":" DATE(YEAR(TODAY()),8,7)","v":"2022-08-07"},{"$f":"DATE(YEAR(TODAY()),6,29)","v":"2022-06-29"},{"$f":"DATE(YEAR(TODAY()),9,3)","v":"2022-09-03"},200,220,{"$f":"DAYS360(PodrobnostiProjekta[[#This Row],[PREDVIDEN ZAČETEK]],PodrobnostiProjekta[[#This Row],[PREDVIDEN ZAKLJUČEK]],FALSE)","v":58},{"$f":"DAYS360(PodrobnostiProjekta[[#This Row],[DEJANSKI ZAČETEK]],PodrobnostiProjekta[[#This Row],[DEJANSKI ZAKLJUČEK]],FALSE)","v":64},{"$f":"INDEX(Parametri[],MATCH(PodrobnostiProjekta[[#This Row],[VRSTA PROJEKTA]],Parametri[VRSTA PROJEKTA],0),MATCH(PodrobnostiProjekta[[#Headers],[UPRAVITELJ RAČUNOV]],Parametri[#Headers],0))*INDEX('PARAMETRI PROJEKTA'!$B$12:$H$12,1,MATCH(PodrobnostiProjekta[[#Headers],[UPRAVITELJ RAČUNOV]],Parametri[#Headers],0))*PodrobnostiProjekta[[#This Row],[PREDVIDENO DELO]]","v":{"v":7200,"d":"7,200 €"}},{"$f":"INDEX(Parametri[],MATCH(PodrobnostiProjekta[[#This Row],[VRSTA PROJEKTA]],Parametri[VRSTA PROJEKTA],0),MATCH(PodrobnostiProjekta[[#Headers],[VODJA PROJEKTA]],Parametri[#Headers],0))*INDEX('PARAMETRI PROJEKTA'!$B$12:$H$12,1,MATCH(PodrobnostiProjekta[[#Headers],[VODJA PROJEKTA]],Parametri[#Headers],0))*PodrobnostiProjekta[[#This Row],[PREDVIDENO DELO]]","v":{"v":2400,"d":"2,400 €"}},{"$f":"INDEX(Parametri[],MATCH(PodrobnostiProjekta[[#This Row],[VRSTA PROJEKTA]],Parametri[VRSTA PROJEKTA],0),MATCH(PodrobnostiProjekta[[#Headers],[VODJA STRATEGIJE]],Parametri[#Headers],0))*INDEX('PARAMETRI PROJEKTA'!$B$12:$H$12,1,MATCH(PodrobnostiProjekta[[#Headers],[VODJA STRATEGIJE]],Parametri[#Headers],0))*PodrobnostiProjekta[[#This Row],[PREDVIDENO DELO]]","v":{"v":18000,"d":"18,000 €"}},{"$f":"INDEX(Parametri[],MATCH(PodrobnostiProjekta[[#This Row],[VRSTA PROJEKTA]],Parametri[VRSTA PROJEKTA],0),MATCH(PodrobnostiProjekta[[#Headers],[STROKOVNJAK ZA DIZAJN]],Parametri[#Headers],0))*INDEX('PARAMETRI PROJEKTA'!$B$12:$H$12,1,MATCH(PodrobnostiProjekta[[#Headers],[STROKOVNJAK ZA DIZAJN]],Parametri[#Headers],0))*PodrobnostiProjekta[[#This Row],[PREDVIDENO DELO]]","v":{"v":0,"d":"0 €"}},{"$f":"INDEX(Parametri[],MATCH(PodrobnostiProjekta[[#This Row],[VRSTA PROJEKTA]],Parametri[VRSTA PROJEKTA],0),MATCH(PodrobnostiProjekta[[#Headers],[OSEBJE DOGODKA]],Parametri[#Headers],0))*INDEX('PARAMETRI PROJEKTA'!$B$12:$H$12,1,MATCH(PodrobnostiProjekta[[#Headers],[OSEBJE DOGODKA]],Parametri[#Headers],0))*PodrobnostiProjekta[[#This Row],[PREDVIDENO DELO]]","v":{"v":0,"d":"0 €"}},{"$f":"INDEX(Parametri[],MATCH(PodrobnostiProjekta[[#This Row],[VRSTA PROJEKTA]],Parametri[VRSTA PROJEKTA],0),MATCH(PodrobnostiProjekta[[#Headers],[SKRBNIŠKO OSEBJE]],Parametri[#Headers],0))*INDEX('PARAMETRI PROJEKTA'!$B$12:$H$12,1,MATCH(PodrobnostiProjekta[[#Headers],[SKRBNIŠKO OSEBJE]],Parametri[#Headers],0))*PodrobnostiProjekta[[#This Row],[PREDVIDENO DELO]]","v":{"v":1200,"d":"1,200 €"}},{"$f":"INDEX(Parametri[],MATCH(PodrobnostiProjekta[[#This Row],[VRSTA PROJEKTA]],Parametri[VRSTA PROJEKTA],0),MATCH(PodrobnostiProjekta[[#Headers],[UPRAVITELJ RAČUNOV]],Parametri[#Headers],0))*INDEX('PARAMETRI PROJEKTA'!$B$12:$H$12,1,MATCH(PodrobnostiProjekta[[#Headers],[UPRAVITELJ RAČUNOV]],Parametri[#Headers],0))*PodrobnostiProjekta[[#This Row],[DEJANSKO DELO]]","v":{"v":7920,"d":"7,920 €"}},{"$f":"INDEX(Parametri[],MATCH(PodrobnostiProjekta[[#This Row],[VRSTA PROJEKTA]],Parametri[VRSTA PROJEKTA],0),MATCH(PodrobnostiProjekta[[#Headers],[VODJA PROJEKTA]],Parametri[#Headers],0))*INDEX('PARAMETRI PROJEKTA'!$B$12:$H$12,1,MATCH(PodrobnostiProjekta[[#Headers],[VODJA PROJEKTA]],Parametri[#Headers],0))*PodrobnostiProjekta[[#This Row],[DEJANSKO DELO]]","v":{"v":2640,"d":"2,640 €"}},{"$f":"INDEX(Parametri[],MATCH(PodrobnostiProjekta[[#This Row],[VRSTA PROJEKTA]],Parametri[VRSTA PROJEKTA],0),MATCH(PodrobnostiProjekta[[#Headers],[VODJA STRATEGIJE]],Parametri[#Headers],0))*INDEX('PARAMETRI PROJEKTA'!$B$12:$H$12,1,MATCH(PodrobnostiProjekta[[#Headers],[VODJA STRATEGIJE]],Parametri[#Headers],0))*PodrobnostiProjekta[[#This Row],[DEJANSKO DELO]]","v":{"v":19800,"d":"19,800 €"}},{"$f":"INDEX(Parametri[],MATCH(PodrobnostiProjekta[[#This Row],[VRSTA PROJEKTA]],Parametri[VRSTA PROJEKTA],0),MATCH(PodrobnostiProjekta[[#Headers],[STROKOVNJAK ZA DIZAJN]],Parametri[#Headers],0))*INDEX('PARAMETRI PROJEKTA'!$B$12:$H$12,1,MATCH(PodrobnostiProjekta[[#Headers],[STROKOVNJAK ZA DIZAJN]],Parametri[#Headers],0))*PodrobnostiProjekta[[#This Row],[DEJANSKO DELO]]","v":{"v":0,"d":"0 €"}},{"$f":"INDEX(Parametri[],MATCH(PodrobnostiProjekta[[#This Row],[VRSTA PROJEKTA]],Parametri[VRSTA PROJEKTA],0),MATCH(PodrobnostiProjekta[[#Headers],[OSEBJE DOGODKA]],Parametri[#Headers],0))*INDEX('PARAMETRI PROJEKTA'!$B$12:$H$12,1,MATCH(PodrobnostiProjekta[[#Headers],[OSEBJE DOGODKA]],Parametri[#Headers],0))*PodrobnostiProjekta[[#This Row],[DEJANSKO DELO]]","v":{"v":0,"d":"0 €"}},{"$f":"INDEX(Parametri[],MATCH(PodrobnostiProjekta[[#This Row],[VRSTA PROJEKTA]],Parametri[VRSTA PROJEKTA],0),MATCH(PodrobnostiProjekta[[#Headers],[SKRBNIŠKO OSEBJE]],Parametri[#Headers],0))*INDEX('PARAMETRI PROJEKTA'!$B$12:$H$12,1,MATCH(PodrobnostiProjekta[[#Headers],[SKRBNIŠKO OSEBJE]],Parametri[#Headers],0))*PodrobnostiProjekta[[#This Row],[DEJANSKO DELO]]","v":{"v":1320,"d":"1,320 €"}}]
[null,"Projekt 2","Načrtovanje dogodka",{"$f":"DATE(YEAR(TODAY())+1,6,25)","v":"2023-06-25"},{"$f":"DATE(YEAR(TODAY())+1,7,27)","v":"2023-07-27"},{"$f":"DATE(YEAR(TODAY()),7,15)","v":"2022-07-15"},{"$f":"DATE(YEAR(TODAY())+1,8,25)","v":"2023-08-25"},400,390,{"$f":"DAYS360(PodrobnostiProjekta[[#This Row],[PREDVIDEN ZAČETEK]],PodrobnostiProjekta[[#This Row],[PREDVIDEN ZAKLJUČEK]],FALSE)","v":32},{"$f":"DAYS360(PodrobnostiProjekta[[#This Row],[DEJANSKI ZAČETEK]],PodrobnostiProjekta[[#This Row],[DEJANSKI ZAKLJUČEK]],FALSE)","v":400},{"$f":"INDEX(Parametri[],MATCH(PodrobnostiProjekta[[#This Row],[VRSTA PROJEKTA]],Parametri[VRSTA PROJEKTA],0),MATCH(PodrobnostiProjekta[[#Headers],[UPRAVITELJ RAČUNOV]],Parametri[#Headers],0))*INDEX('PARAMETRI PROJEKTA'!$B$12:$H$12,1,MATCH(PodrobnostiProjekta[[#Headers],[UPRAVITELJ RAČUNOV]],Parametri[#Headers],0))*PodrobnostiProjekta[[#This Row],[PREDVIDENO DELO]]","v":{"v":14400,"d":"14,400 €"}},{"$f":"INDEX(Parametri[],MATCH(PodrobnostiProjekta[[#This Row],[VRSTA PROJEKTA]],Parametri[VRSTA PROJEKTA],0),MATCH(PodrobnostiProjekta[[#Headers],[VODJA PROJEKTA]],Parametri[#Headers],0))*INDEX('PARAMETRI PROJEKTA'!$B$12:$H$12,1,MATCH(PodrobnostiProjekta[[#Headers],[VODJA PROJEKTA]],Parametri[#Headers],0))*PodrobnostiProjekta[[#This Row],[PREDVIDENO DELO]]","v":{"v":24000,"d":"24,000 €"}},{"$f":"INDEX(Parametri[],MATCH(PodrobnostiProjekta[[#This Row],[VRSTA PROJEKTA]],Parametri[VRSTA PROJEKTA],0),MATCH(PodrobnostiProjekta[[#Headers],[VODJA STRATEGIJE]],Parametri[#Headers],0))*INDEX('PARAMETRI PROJEKTA'!$B$12:$H$12,1,MATCH(PodrobnostiProjekta[[#Headers],[VODJA STRATEGIJE]],Parametri[#Headers],0))*PodrobnostiProjekta[[#This Row],[PREDVIDENO DELO]]","v":{"v":6000,"d":"6,000 €"}},{"$f":"INDEX(Parametri[],MATCH(PodrobnostiProjekta[[#This Row],[VRSTA PROJEKTA]],Parametri[VRSTA PROJEKTA],0),MATCH(PodrobnostiProjekta[[#Headers],[STROKOVNJAK ZA DIZAJN]],Parametri[#Headers],0))*INDEX('PARAMETRI PROJEKTA'!$B$12:$H$12,1,MATCH(PodrobnostiProjekta[[#Headers],[STROKOVNJAK ZA DIZAJN]],Parametri[#Headers],0))*PodrobnostiProjekta[[#This Row],[PREDVIDENO DELO]]","v":{"v":4000,"d":"4,000 €"}},{"$f":"INDEX(Parametri[],MATCH(PodrobnostiProjekta[[#This Row],[VRSTA PROJEKTA]],Parametri[VRSTA PROJEKTA],0),MATCH(PodrobnostiProjekta[[#Headers],[OSEBJE DOGODKA]],Parametri[#Headers],0))*INDEX('PARAMETRI PROJEKTA'!$B$12:$H$12,1,MATCH(PodrobnostiProjekta[[#Headers],[OSEBJE DOGODKA]],Parametri[#Headers],0))*PodrobnostiProjekta[[#This Row],[PREDVIDENO DELO]]","v":{"v":0,"d":"0 €"}},{"$f":"INDEX(Parametri[],MATCH(PodrobnostiProjekta[[#This Row],[VRSTA PROJEKTA]],Parametri[VRSTA PROJEKTA],0),MATCH(PodrobnostiProjekta[[#Headers],[SKRBNIŠKO OSEBJE]],Parametri[#Headers],0))*INDEX('PARAMETRI PROJEKTA'!$B$12:$H$12,1,MATCH(PodrobnostiProjekta[[#Headers],[SKRBNIŠKO OSEBJE]],Parametri[#Headers],0))*PodrobnostiProjekta[[#This Row],[PREDVIDENO DELO]]","v":{"v":2400,"d":"2,400 €"}},{"$f":"INDEX(Parametri[],MATCH(PodrobnostiProjekta[[#This Row],[VRSTA PROJEKTA]],Parametri[VRSTA PROJEKTA],0),MATCH(PodrobnostiProjekta[[#Headers],[UPRAVITELJ RAČUNOV]],Parametri[#Headers],0))*INDEX('PARAMETRI PROJEKTA'!$B$12:$H$12,1,MATCH(PodrobnostiProjekta[[#Headers],[UPRAVITELJ RAČUNOV]],Parametri[#Headers],0))*PodrobnostiProjekta[[#This Row],[DEJANSKO DELO]]","v":{"v":14040,"d":"14,040 €"}},{"$f":"INDEX(Parametri[],MATCH(PodrobnostiProjekta[[#This Row],[VRSTA PROJEKTA]],Parametri[VRSTA PROJEKTA],0),MATCH(PodrobnostiProjekta[[#Headers],[VODJA PROJEKTA]],Parametri[#Headers],0))*INDEX('PARAMETRI PROJEKTA'!$B$12:$H$12,1,MATCH(PodrobnostiProjekta[[#Headers],[VODJA PROJEKTA]],Parametri[#Headers],0))*PodrobnostiProjekta[[#This Row],[DEJANSKO DELO]]","v":{"v":23400,"d":"23,400 €"}},{"$f":"INDEX(Parametri[],MATCH(PodrobnostiProjekta[[#This Row],[VRSTA PROJEKTA]],Parametri[VRSTA PROJEKTA],0),MATCH(PodrobnostiProjekta[[#Headers],[VODJA STRATEGIJE]],Parametri[#Headers],0))*INDEX('PARAMETRI PROJEKTA'!$B$12:$H$12,1,MATCH(PodrobnostiProjekta[[#Headers],[VODJA STRATEGIJE]],Parametri[#Headers],0))*PodrobnostiProjekta[[#This Row],[DEJANSKO DELO]]","v":{"v":5850,"d":"5,850 €"}},{"$f":"INDEX(Parametri[],MATCH(PodrobnostiProjekta[[#This Row],[VRSTA PROJEKTA]],Parametri[VRSTA PROJEKTA],0),MATCH(PodrobnostiProjekta[[#Headers],[STROKOVNJAK ZA DIZAJN]],Parametri[#Headers],0))*INDEX('PARAMETRI PROJEKTA'!$B$12:$H$12,1,MATCH(PodrobnostiProjekta[[#Headers],[STROKOVNJAK ZA DIZAJN]],Parametri[#Headers],0))*PodrobnostiProjekta[[#This Row],[DEJANSKO DELO]]","v":{"v":3900,"d":"3,900 €"}},{"$f":"INDEX(Parametri[],MATCH(PodrobnostiProjekta[[#This Row],[VRSTA PROJEKTA]],Parametri[VRSTA PROJEKTA],0),MATCH(PodrobnostiProjekta[[#Headers],[OSEBJE DOGODKA]],Parametri[#Headers],0))*INDEX('PARAMETRI PROJEKTA'!$B$12:$H$12,1,MATCH(PodrobnostiProjekta[[#Headers],[OSEBJE DOGODKA]],Parametri[#Headers],0))*PodrobnostiProjekta[[#This Row],[DEJANSKO DELO]]","v":{"v":0,"d":"0 €"}},{"$f":"INDEX(Parametri[],MATCH(PodrobnostiProjekta[[#This Row],[VRSTA PROJEKTA]],Parametri[VRSTA PROJEKTA],0),MATCH(PodrobnostiProjekta[[#Headers],[SKRBNIŠKO OSEBJE]],Parametri[#Headers],0))*INDEX('PARAMETRI PROJEKTA'!$B$12:$H$12,1,MATCH(PodrobnostiProjekta[[#Headers],[SKRBNIŠKO OSEBJE]],Parametri[#Headers],0))*PodrobnostiProjekta[[#This Row],[DEJANSKO DELO]]","v":{"v":2340,"d":"2,340 €"}}]
[null,"Projekt 3","Dizajn dogodka",{"$f":"DATE(YEAR(TODAY())+2,7,12)","v":"2024-07-12"},{"$f":"DATE(YEAR(TODAY())+2,9,19)","v":"2024-09-19"},"2025-08-07","2025-10-10",500,500,{"$f":"DAYS360(PodrobnostiProjekta[[#This Row],[PREDVIDEN ZAČETEK]],PodrobnostiProjekta[[#This Row],[PREDVIDEN ZAKLJUČEK]],FALSE)","v":67},{"$f":"DAYS360(PodrobnostiProjekta[[#This Row],[DEJANSKI ZAČETEK]],PodrobnostiProjekta[[#This Row],[DEJANSKI ZAKLJUČEK]],FALSE)","v":63},{"$f":"INDEX(Parametri[],MATCH(PodrobnostiProjekta[[#This Row],[VRSTA PROJEKTA]],Parametri[VRSTA PROJEKTA],0),MATCH(PodrobnostiProjekta[[#Headers],[UPRAVITELJ RAČUNOV]],Parametri[#Headers],0))*INDEX('PARAMETRI PROJEKTA'!$B$12:$H$12,1,MATCH(PodrobnostiProjekta[[#Headers],[UPRAVITELJ RAČUNOV]],Parametri[#Headers],0))*PodrobnostiProjekta[[#This Row],[PREDVIDENO DELO]]","v":{"v":18000,"d":"18,000 €"}},{"$f":"INDEX(Parametri[],MATCH(PodrobnostiProjekta[[#This Row],[VRSTA PROJEKTA]],Parametri[VRSTA PROJEKTA],0),MATCH(PodrobnostiProjekta[[#Headers],[VODJA PROJEKTA]],Parametri[#Headers],0))*INDEX('PARAMETRI PROJEKTA'!$B$12:$H$12,1,MATCH(PodrobnostiProjekta[[#Headers],[VODJA PROJEKTA]],Parametri[#Headers],0))*PodrobnostiProjekta[[#This Row],[PREDVIDENO DELO]]","v":{"v":12000,"d":"12,000 €"}},{"$f":"INDEX(Parametri[],MATCH(PodrobnostiProjekta[[#This Row],[VRSTA PROJEKTA]],Parametri[VRSTA PROJEKTA],0),MATCH(PodrobnostiProjekta[[#Headers],[VODJA STRATEGIJE]],Parametri[#Headers],0))*INDEX('PARAMETRI PROJEKTA'!$B$12:$H$12,1,MATCH(PodrobnostiProjekta[[#Headers],[VODJA STRATEGIJE]],Parametri[#Headers],0))*PodrobnostiProjekta[[#This Row],[PREDVIDENO DELO]]","v":{"v":0,"d":"0 €"}},{"$f":"INDEX(Parametri[],MATCH(PodrobnostiProjekta[[#This Row],[VRSTA PROJEKTA]],Parametri[VRSTA PROJEKTA],0),MATCH(PodrobnostiProjekta[[#Headers],[STROKOVNJAK ZA DIZAJN]],Parametri[#Headers],0))*INDEX('PARAMETRI PROJEKTA'!$B$12:$H$12,1,MATCH(PodrobnostiProjekta[[#Headers],[STROKOVNJAK ZA DIZAJN]],Parametri[#Headers],0))*PodrobnostiProjekta[[#This Row],[PREDVIDENO DELO]]","v":{"v":25000,"d":"25,000 €"}},{"$f":"INDEX(Parametri[],MATCH(PodrobnostiProjekta[[#This Row],[VRSTA PROJEKTA]],Parametri[VRSTA PROJEKTA],0),MATCH(PodrobnostiProjekta[[#Headers],[OSEBJE DOGODKA]],Parametri[#Headers],0))*INDEX('PARAMETRI PROJEKTA'!$B$12:$H$12,1,MATCH(PodrobnostiProjekta[[#Headers],[OSEBJE DOGODKA]],Parametri[#Headers],0))*PodrobnostiProjekta[[#This Row],[PREDVIDENO DELO]]","v":{"v":0,"d":"0 €"}},{"$f":"INDEX(Parametri[],MATCH(PodrobnostiProjekta[[#This Row],[VRSTA PROJEKTA]],Parametri[VRSTA PROJEKTA],0),MATCH(PodrobnostiProjekta[[#Headers],[SKRBNIŠKO OSEBJE]],Parametri[#Headers],0))*INDEX('PARAMETRI PROJEKTA'!$B$12:$H$12,1,MATCH(PodrobnostiProjekta[[#Headers],[SKRBNIŠKO OSEBJE]],Parametri[#Headers],0))*PodrobnostiProjekta[[#This Row],[PREDVIDENO DELO]]","v":{"v":3000,"d":"3,000 €"}},{"$f":"INDEX(Parametri[],MATCH(PodrobnostiProjekta[[#This Row],[VRSTA PROJEKTA]],Parametri[VRSTA PROJEKTA],0),MATCH(PodrobnostiProjekta[[#Headers],[UPRAVITELJ RAČUNOV]],Parametri[#Headers],0))*INDEX('PARAMETRI PROJEKTA'!$B$12:$H$12,1,MATCH(PodrobnostiProjekta[[#Headers],[UPRAVITELJ RAČUNOV]],Parametri[#Headers],0))*PodrobnostiProjekta[[#This Row],[DEJANSKO DELO]]","v":{"v":18000,"d":"18,000 €"}},{"$f":"INDEX(Parametri[],MATCH(PodrobnostiProjekta[[#This Row],[VRSTA PROJEKTA]],Parametri[VRSTA PROJEKTA],0),MATCH(PodrobnostiProjekta[[#Headers],[VODJA PROJEKTA]],Parametri[#Headers],0))*INDEX('PARAMETRI PROJEKTA'!$B$12:$H$12,1,MATCH(PodrobnostiProjekta[[#Headers],[VODJA PROJEKTA]],Parametri[#Headers],0))*PodrobnostiProjekta[[#This Row],[DEJANSKO DELO]]","v":{"v":12000,"d":"12,000 €"}},{"$f":"INDEX(Parametri[],MATCH(PodrobnostiProjekta[[#This Row],[VRSTA PROJEKTA]],Parametri[VRSTA PROJEKTA],0),MATCH(PodrobnostiProjekta[[#Headers],[VODJA STRATEGIJE]],Parametri[#Headers],0))*INDEX('PARAMETRI PROJEKTA'!$B$12:$H$12,1,MATCH(PodrobnostiProjekta[[#Headers],[VODJA STRATEGIJE]],Parametri[#Headers],0))*PodrobnostiProjekta[[#This Row],[DEJANSKO DELO]]","v":{"v":0,"d":"0 €"}},{"$f":"INDEX(Parametri[],MATCH(PodrobnostiProjekta[[#This Row],[VRSTA PROJEKTA]],Parametri[VRSTA PROJEKTA],0),MATCH(PodrobnostiProjekta[[#Headers],[STROKOVNJAK ZA DIZAJN]],Parametri[#Headers],0))*INDEX('PARAMETRI PROJEKTA'!$B$12:$H$12,1,MATCH(PodrobnostiProjekta[[#Headers],[STROKOVNJAK ZA DIZAJN]],Parametri[#Headers],0))*PodrobnostiProjekta[[#This Row],[DEJANSKO DELO]]","v":{"v":25000,"d":"25,000 €"}},{"$f":"INDEX(Parametri[],MATCH(PodrobnostiProjekta[[#This Row],[VRSTA PROJEKTA]],Parametri[VRSTA PROJEKTA],0),MATCH(PodrobnostiProjekta[[#Headers],[OSEBJE DOGODKA]],Parametri[#Headers],0))*INDEX('PARAMETRI PROJEKTA'!$B$12:$H$12,1,MATCH(PodrobnostiProjekta[[#Headers],[OSEBJE DOGODKA]],Parametri[#Headers],0))*PodrobnostiProjekta[[#This Row],[DEJANSKO DELO]]","v":{"v":0,"d":"0 €"}},{"$f":"INDEX(Parametri[],MATCH(PodrobnostiProjekta[[#This Row],[VRSTA PROJEKTA]],Parametri[VRSTA PROJEKTA],0),MATCH(PodrobnostiProjekta[[#Headers],[SKRBNIŠKO OSEBJE]],Parametri[#Headers],0))*INDEX('PARAMETRI PROJEKTA'!$B$12:$H$12,1,MATCH(PodrobnostiProjekta[[#Headers],[SKRBNIŠKO OSEBJE]],Parametri[#Headers],0))*PodrobnostiProjekta[[#This Row],[DEJANSKO DELO]]","v":{"v":3000,"d":"3,000 €"}}]
[null,"Projekt 4","Logistika dogodka",{"$f":"DATE(YEAR(TODAY())+3,7,30)","v":"2025-07-30"},{"$f":"DATE(YEAR(TODAY())+3,9,28)","v":"2025-09-28"},{"$f":"DATE(YEAR(TODAY())+3,9,14)","v":"2025-09-14"},{"$f":"DATE(YEAR(TODAY())+3,11,13)","v":"2025-11-13"},150,145,{"$f":"DAYS360(PodrobnostiProjekta[[#This Row],[PREDVIDEN ZAČETEK]],PodrobnostiProjekta[[#This Row],[PREDVIDEN ZAKLJUČEK]],FALSE)","v":58},{"$f":"DAYS360(PodrobnostiProjekta[[#This Row],[DEJANSKI ZAČETEK]],PodrobnostiProjekta[[#This Row],[DEJANSKI ZAKLJUČEK]],FALSE)","v":59},{"$f":"INDEX(Parametri[],MATCH(PodrobnostiProjekta[[#This Row],[VRSTA PROJEKTA]],Parametri[VRSTA PROJEKTA],0),MATCH(PodrobnostiProjekta[[#Headers],[UPRAVITELJ RAČUNOV]],Parametri[#Headers],0))*INDEX('PARAMETRI PROJEKTA'!$B$12:$H$12,1,MATCH(PodrobnostiProjekta[[#Headers],[UPRAVITELJ RAČUNOV]],Parametri[#Headers],0))*PodrobnostiProjekta[[#This Row],[PREDVIDENO DELO]]","v":{"v":5400,"d":"5,400 €"}},{"$f":"INDEX(Parametri[],MATCH(PodrobnostiProjekta[[#This Row],[VRSTA PROJEKTA]],Parametri[VRSTA PROJEKTA],0),MATCH(PodrobnostiProjekta[[#Headers],[VODJA PROJEKTA]],Parametri[#Headers],0))*INDEX('PARAMETRI PROJEKTA'!$B$12:$H$12,1,MATCH(PodrobnostiProjekta[[#Headers],[VODJA PROJEKTA]],Parametri[#Headers],0))*PodrobnostiProjekta[[#This Row],[PREDVIDENO DELO]]","v":{"v":10800,"d":"10,800 €"}},{"$f":"INDEX(Parametri[],MATCH(PodrobnostiProjekta[[#This Row],[VRSTA PROJEKTA]],Parametri[VRSTA PROJEKTA],0),MATCH(PodrobnostiProjekta[[#Headers],[VODJA STRATEGIJE]],Parametri[#Headers],0))*INDEX('PARAMETRI PROJEKTA'!$B$12:$H$12,1,MATCH(PodrobnostiProjekta[[#Headers],[VODJA STRATEGIJE]],Parametri[#Headers],0))*PodrobnostiProjekta[[#This Row],[PREDVIDENO DELO]]","v":{"v":0,"d":"0 €"}},{"$f":"INDEX(Parametri[],MATCH(PodrobnostiProjekta[[#This Row],[VRSTA PROJEKTA]],Parametri[VRSTA PROJEKTA],0),MATCH(PodrobnostiProjekta[[#Headers],[STROKOVNJAK ZA DIZAJN]],Parametri[#Headers],0))*INDEX('PARAMETRI PROJEKTA'!$B$12:$H$12,1,MATCH(PodrobnostiProjekta[[#Headers],[STROKOVNJAK ZA DIZAJN]],Parametri[#Headers],0))*PodrobnostiProjekta[[#This Row],[PREDVIDENO DELO]]","v":{"v":0,"d":"0 €"}},{"$f":"INDEX(Parametri[],MATCH(PodrobnostiProjekta[[#This Row],[VRSTA PROJEKTA]],Parametri[VRSTA PROJEKTA],0),MATCH(PodrobnostiProjekta[[#Headers],[OSEBJE DOGODKA]],Parametri[#Headers],0))*INDEX('PARAMETRI PROJEKTA'!$B$12:$H$12,1,MATCH(PodrobnostiProjekta[[#Headers],[OSEBJE DOGODKA]],Parametri[#Headers],0))*PodrobnostiProjekta[[#This Row],[PREDVIDENO DELO]]","v":{"v":1200,"d":"1,200 €"}},{"$f":"INDEX(Parametri[],MATCH(PodrobnostiProjekta[[#This Row],[VRSTA PROJEKTA]],Parametri[VRSTA PROJEKTA],0),MATCH(PodrobnostiProjekta[[#Headers],[SKRBNIŠKO OSEBJE]],Parametri[#Headers],0))*INDEX('PARAMETRI PROJEKTA'!$B$12:$H$12,1,MATCH(PodrobnostiProjekta[[#Headers],[SKRBNIŠKO OSEBJE]],Parametri[#Headers],0))*PodrobnostiProjekta[[#This Row],[PREDVIDENO DELO]]","v":{"v":900,"d":"900 €"}},{"$f":"INDEX(Parametri[],MATCH(PodrobnostiProjekta[[#This Row],[VRSTA PROJEKTA]],Parametri[VRSTA PROJEKTA],0),MATCH(PodrobnostiProjekta[[#Headers],[UPRAVITELJ RAČUNOV]],Parametri[#Headers],0))*INDEX('PARAMETRI PROJEKTA'!$B$12:$H$12,1,MATCH(PodrobnostiProjekta[[#Headers],[UPRAVITELJ RAČUNOV]],Parametri[#Headers],0))*PodrobnostiProjekta[[#This Row],[DEJANSKO DELO]]","v":{"v":5220,"d":"5,220 €"}},{"$f":"INDEX(Parametri[],MATCH(PodrobnostiProjekta[[#This Row],[VRSTA PROJEKTA]],Parametri[VRSTA PROJEKTA],0),MATCH(PodrobnostiProjekta[[#Headers],[VODJA PROJEKTA]],Parametri[#Headers],0))*INDEX('PARAMETRI PROJEKTA'!$B$12:$H$12,1,MATCH(PodrobnostiProjekta[[#Headers],[VODJA PROJEKTA]],Parametri[#Headers],0))*PodrobnostiProjekta[[#This Row],[DEJANSKO DELO]]","v":{"v":10440,"d":"10,440 €"}},{"$f":"INDEX(Parametri[],MATCH(PodrobnostiProjekta[[#This Row],[VRSTA PROJEKTA]],Parametri[VRSTA PROJEKTA],0),MATCH(PodrobnostiProjekta[[#Headers],[VODJA STRATEGIJE]],Parametri[#Headers],0))*INDEX('PARAMETRI PROJEKTA'!$B$12:$H$12,1,MATCH(PodrobnostiProjekta[[#Headers],[VODJA STRATEGIJE]],Parametri[#Headers],0))*PodrobnostiProjekta[[#This Row],[DEJANSKO DELO]]","v":{"v":0,"d":"0 €"}},{"$f":"INDEX(Parametri[],MATCH(PodrobnostiProjekta[[#This Row],[VRSTA PROJEKTA]],Parametri[VRSTA PROJEKTA],0),MATCH(PodrobnostiProjekta[[#Headers],[STROKOVNJAK ZA DIZAJN]],Parametri[#Headers],0))*INDEX('PARAMETRI PROJEKTA'!$B$12:$H$12,1,MATCH(PodrobnostiProjekta[[#Headers],[STROKOVNJAK ZA DIZAJN]],Parametri[#Headers],0))*PodrobnostiProjekta[[#This Row],[DEJANSKO DELO]]","v":{"v":0,"d":"0 €"}},{"$f":"INDEX(Parametri[],MATCH(PodrobnostiProjekta[[#This Row],[VRSTA PROJEKTA]],Parametri[VRSTA PROJEKTA],0),MATCH(PodrobnostiProjekta[[#Headers],[OSEBJE DOGODKA]],Parametri[#Headers],0))*INDEX('PARAMETRI PROJEKTA'!$B$12:$H$12,1,MATCH(PodrobnostiProjekta[[#Headers],[OSEBJE DOGODKA]],Parametri[#Headers],0))*PodrobnostiProjekta[[#This Row],[DEJANSKO DELO]]","v":{"v":1160,"d":"1,160 €"}},{"$f":"INDEX(Parametri[],MATCH(PodrobnostiProjekta[[#This Row],[VRSTA PROJEKTA]],Parametri[VRSTA PROJEKTA],0),MATCH(PodrobnostiProjekta[[#Headers],[SKRBNIŠKO OSEBJE]],Parametri[#Headers],0))*INDEX('PARAMETRI PROJEKTA'!$B$12:$H$12,1,MATCH(PodrobnostiProjekta[[#Headers],[SKRBNIŠKO OSEBJE]],Parametri[#Headers],0))*PodrobnostiProjekta[[#This Row],[DEJANSKO DELO]]","v":{"v":870,"d":"870 €"}}]
[null,"Projekt 5","Osebje dogodka",{"$f":"DATE(YEAR(TODAY())+4,8,11)","v":"2026-08-11"},{"$f":"DATE(YEAR(TODAY())+4,8,21)","v":"2026-08-21"},{"$f":"DATE(YEAR(TODAY())+4,9,14)","v":"2026-09-14"},{"$f":"DATE(YEAR(TODAY())+4,9,25)","v":"2026-09-25"},250,255,{"$f":"DAYS360(PodrobnostiProjekta[[#This Row],[PREDVIDEN ZAČETEK]],PodrobnostiProjekta[[#This Row],[PREDVIDEN ZAKLJUČEK]],FALSE)","v":10},{"$f":"DAYS360(PodrobnostiProjekta[[#This Row],[DEJANSKI ZAČETEK]],PodrobnostiProjekta[[#This Row],[DEJANSKI ZAKLJUČEK]],FALSE)","v":11},{"$f":"INDEX(Parametri[],MATCH(PodrobnostiProjekta[[#This Row],[VRSTA PROJEKTA]],Parametri[VRSTA PROJEKTA],0),MATCH(PodrobnostiProjekta[[#Headers],[UPRAVITELJ RAČUNOV]],Parametri[#Headers],0))*INDEX('PARAMETRI PROJEKTA'!$B$12:$H$12,1,MATCH(PodrobnostiProjekta[[#Headers],[UPRAVITELJ RAČUNOV]],Parametri[#Headers],0))*PodrobnostiProjekta[[#This Row],[PREDVIDENO DELO]]","v":{"v":9000,"d":"9,000 €"}},{"$f":"INDEX(Parametri[],MATCH(PodrobnostiProjekta[[#This Row],[VRSTA PROJEKTA]],Parametri[VRSTA PROJEKTA],0),MATCH(PodrobnostiProjekta[[#Headers],[VODJA PROJEKTA]],Parametri[#Headers],0))*INDEX('PARAMETRI PROJEKTA'!$B$12:$H$12,1,MATCH(PodrobnostiProjekta[[#Headers],[VODJA PROJEKTA]],Parametri[#Headers],0))*PodrobnostiProjekta[[#This Row],[PREDVIDENO DELO]]","v":{"v":3000,"d":"3,000 €"}},{"$f":"INDEX(Parametri[],MATCH(PodrobnostiProjekta[[#This Row],[VRSTA PROJEKTA]],Parametri[VRSTA PROJEKTA],0),MATCH(PodrobnostiProjekta[[#Headers],[VODJA STRATEGIJE]],Parametri[#Headers],0))*INDEX('PARAMETRI PROJEKTA'!$B$12:$H$12,1,MATCH(PodrobnostiProjekta[[#Headers],[VODJA STRATEGIJE]],Parametri[#Headers],0))*PodrobnostiProjekta[[#This Row],[PREDVIDENO DELO]]","v":{"v":0,"d":"0 €"}},{"$f":"INDEX(Parametri[],MATCH(PodrobnostiProjekta[[#This Row],[VRSTA PROJEKTA]],Parametri[VRSTA PROJEKTA],0),MATCH(PodrobnostiProjekta[[#Headers],[STROKOVNJAK ZA DIZAJN]],Parametri[#Headers],0))*INDEX('PARAMETRI PROJEKTA'!$B$12:$H$12,1,MATCH(PodrobnostiProjekta[[#Headers],[STROKOVNJAK ZA DIZAJN]],Parametri[#Headers],0))*PodrobnostiProjekta[[#This Row],[PREDVIDENO DELO]]","v":{"v":0,"d":"0 €"}},{"$f":"INDEX(Parametri[],MATCH(PodrobnostiProjekta[[#This Row],[VRSTA PROJEKTA]],Parametri[VRSTA PROJEKTA],0),MATCH(PodrobnostiProjekta[[#Headers],[OSEBJE DOGODKA]],Parametri[#Headers],0))*INDEX('PARAMETRI PROJEKTA'!$B$12:$H$12,1,MATCH(PodrobnostiProjekta[[#Headers],[OSEBJE DOGODKA]],Parametri[#Headers],0))*PodrobnostiProjekta[[#This Row],[PREDVIDENO DELO]]","v":{"v":12000,"d":"12,000 €"}},{"$f":"INDEX(Parametri[],MATCH(PodrobnostiProjekta[[#This Row],[VRSTA PROJEKTA]],Parametri[VRSTA PROJEKTA],0),MATCH(PodrobnostiProjekta[[#Headers],[SKRBNIŠKO OSEBJE]],Parametri[#Headers],0))*INDEX('PARAMETRI PROJEKTA'!$B$12:$H$12,1,MATCH(PodrobnostiProjekta[[#Headers],[SKRBNIŠKO OSEBJE]],Parametri[#Headers],0))*PodrobnostiProjekta[[#This Row],[PREDVIDENO DELO]]","v":{"v":1500,"d":"1,500 €"}},{"$f":"INDEX(Parametri[],MATCH(PodrobnostiProjekta[[#This Row],[VRSTA PROJEKTA]],Parametri[VRSTA PROJEKTA],0),MATCH(PodrobnostiProjekta[[#Headers],[UPRAVITELJ RAČUNOV]],Parametri[#Headers],0))*INDEX('PARAMETRI PROJEKTA'!$B$12:$H$12,1,MATCH(PodrobnostiProjekta[[#Headers],[UPRAVITELJ RAČUNOV]],Parametri[#Headers],0))*PodrobnostiProjekta[[#This Row],[DEJANSKO DELO]]","v":{"v":9180,"d":"9,180 €"}},{"$f":"INDEX(Parametri[],MATCH(PodrobnostiProjekta[[#This Row],[VRSTA PROJEKTA]],Parametri[VRSTA PROJEKTA],0),MATCH(PodrobnostiProjekta[[#Headers],[VODJA PROJEKTA]],Parametri[#Headers],0))*INDEX('PARAMETRI PROJEKTA'!$B$12:$H$12,1,MATCH(PodrobnostiProjekta[[#Headers],[VODJA PROJEKTA]],Parametri[#Headers],0))*PodrobnostiProjekta[[#This Row],[DEJANSKO DELO]]","v":{"v":3060,"d":"3,060 €"}},{"$f":"INDEX(Parametri[],MATCH(PodrobnostiProjekta[[#This Row],[VRSTA PROJEKTA]],Parametri[VRSTA PROJEKTA],0),MATCH(PodrobnostiProjekta[[#Headers],[VODJA STRATEGIJE]],Parametri[#Headers],0))*INDEX('PARAMETRI PROJEKTA'!$B$12:$H$12,1,MATCH(PodrobnostiProjekta[[#Headers],[VODJA STRATEGIJE]],Parametri[#Headers],0))*PodrobnostiProjekta[[#This Row],[DEJANSKO DELO]]","v":{"v":0,"d":"0 €"}},{"$f":"INDEX(Parametri[],MATCH(PodrobnostiProjekta[[#This Row],[VRSTA PROJEKTA]],Parametri[VRSTA PROJEKTA],0),MATCH(PodrobnostiProjekta[[#Headers],[STROKOVNJAK ZA DIZAJN]],Parametri[#Headers],0))*INDEX('PARAMETRI PROJEKTA'!$B$12:$H$12,1,MATCH(PodrobnostiProjekta[[#Headers],[STROKOVNJAK ZA DIZAJN]],Parametri[#Headers],0))*PodrobnostiProjekta[[#This Row],[DEJANSKO DELO]]","v":{"v":0,"d":"0 €"}},{"$f":"INDEX(Parametri[],MATCH(PodrobnostiProjekta[[#This Row],[VRSTA PROJEKTA]],Parametri[VRSTA PROJEKTA],0),MATCH(PodrobnostiProjekta[[#Headers],[OSEBJE DOGODKA]],Parametri[#Headers],0))*INDEX('PARAMETRI PROJEKTA'!$B$12:$H$12,1,MATCH(PodrobnostiProjekta[[#Headers],[OSEBJE DOGODKA]],Parametri[#Headers],0))*PodrobnostiProjekta[[#This Row],[DEJANSKO DELO]]","v":{"v":12240,"d":"12,240 €"}},{"$f":"INDEX(Parametri[],MATCH(PodrobnostiProjekta[[#This Row],[VRSTA PROJEKTA]],Parametri[VRSTA PROJEKTA],0),MATCH(PodrobnostiProjekta[[#Headers],[SKRBNIŠKO OSEBJE]],Parametri[#Headers],0))*INDEX('PARAMETRI PROJEKTA'!$B$12:$H$12,1,MATCH(PodrobnostiProjekta[[#Headers],[SKRBNIŠKO OSEBJE]],Parametri[#Headers],0))*PodrobnostiProjekta[[#This Row],[DEJANSKO DELO]]","v":{"v":1530,"d":"1,530 €"}}]
[null,"SKUPAJ",{"$nulls":5},{"$f":"SUBTOTAL(109,PodrobnostiProjekta[PREDVIDENO DELO])","v":1500},{"$f":"SUBTOTAL(109,PodrobnostiProjekta[DEJANSKO DELO])","v":1510},{"$f":"SUBTOTAL(109,PodrobnostiProjekta[PREDVIDENO TRAJANJE])","v":225},{"$f":"SUBTOTAL(109,PodrobnostiProjekta[DEJANSKO TRAJANJE])","v":597}]

{"sheet":"SKUPNE VRENDOSTI PROJEKTA","index":3,"n_rows":10,"n_cols":14,"rows_kept":10}
[null,{"$f":"'PARAMETRI PROJEKTA'!B1","v":"Ime podjetja"}]
[null,"Upravljanje dogodka – sledilnik projektov"]
[null,{"$f":"'PARAMETRI PROJEKTA'!B3","v":"Ime podjetja Zaupno"}]
["Vrtilna tabela z začetkom v celici na desni je samodejno posodobljena.\nINFORMACIJE\nČe želite osvežiti vrtilno tabelo na desni, jo izberite (poljubno celico v vrtilni tabeli), na zavihku traku »ORODJA VRTILNE TABELE | ANALIZA« izberite »Osveži« ali pa pritisnite tipko SHIFT+F10 v poljubni celici v vrtilni tabeli, nato pa izberite »Osveži«.","IME PROJEKTA","UPRAVITELJ RAČUNOV  ","VODJA PROJEKTA  ","VODJA STRATEGIJE  ","STROKOVNJAK ZA DIZAJN  ","OSEBJE DOGODKA  ","SKRBNIŠKO OSEBJE  ","UPRAVITELJ RAČUNOV   ","VODJA PROJEKTA   ","VODJA STRATEGIJE   ","STROKOVNJAK ZA DIZAJN   ","OSEBJE DOGODKA   ","SKRBNIŠKO OSEBJE   "]
[null,"Projekt 1",{"v":7200,"d":"7,200.00 €"},{"v":2400,"d":"2,400.00 €"},{"v":18000,"d":"18,000.00 €"},{"v":0,"d":"0.00 €"},{"v":0,"d":"0.00 €"},{"v":1200,"d":"1,200.00 €"},{"v":7920,"d":"7,920.00 €"},{"v":2640,"d":"2,640.00 €"},{"v":19800,"d":"19,800.00 €"},{"v":0,"d":"0.00 €"},{"v":0,"d":"0.00 €"},{"v":1320,"d":"1,320.00 €"}]
[null,"Projekt 2",{"v":14400,"d":"14,400.00 €"},{"v":24000,"d":"24,000.00 €"},{"v":6000,"d":"6,000.00 €"},{"v":4000,"d":"4,000.00 €"},{"v":0,"d":"0.00 €"},{"v":2400,"d":"2,400.00 €"},{"v":14040,"d":"14,040.00 €"},{"v":23400,"d":"23,400.00 €"},{"v":5850,"d":"5,850.00 €"},{"v":3900,"d":"3,900.00 €"},{"v":0,"d":"0.00 €"},{"v":2340,"d":"2,340.00 €"}]
[null,"Projekt 3",{"v":18000,"d":"18,000.00 €"},{"v":12000,"d":"12,000.00 €"},{"v":0,"d":"0.00 €"},{"v":25000,"d":"25,000.00 €"},{"v":0,"d":"0.00 €"},{"v":3000,"d":"3,000.00 €"},{"v":18000,"d":"18,000.00 €"},{"v":12000,"d":"12,000.00 €"},{"v":0,"d":"0.00 €"},{"v":25000,"d":"25,000.00 €"},{"v":0,"d":"0.00 €"},{"v":3000,"d":"3,000.00 €"}]
[null,"Projekt 4",{"v":5400,"d":"5,400.00 €"},{"v":10800,"d":"10,800.00 €"},{"v":0,"d":"0.00 €"},{"v":0,"d":"0.00 €"},{"v":1200,"d":"1,200.00 €"},{"v":900,"d":"900.00 €"},{"v":5220,"d":"5,220.00 €"},{"v":10440,"d":"10,440.00 €"},{"v":0,"d":"0.00 €"},{"v":0,"d":"0.00 €"},{"v":1160,"d":"1,160.00 €"},{"v":870,"d":"870.00 €"}]
[null,"Projekt 5",{"v":9000,"d":"9,000.00 €"},{"v":3000,"d":"3,000.00 €"},{"v":0,"d":"0.00 €"},{"v":0,"d":"0.00 €"},{"v":12000,"d":"12,000.00 €"},{"v":1500,"d":"1,500.00 €"},{"v":9180,"d":"9,180.00 €"},{"v":3060,"d":"3,060.00 €"},{"v":0,"d":"0.00 €"},{"v":0,"d":"0.00 €"},{"v":12240,"d":"12,240.00 €"},{"v":1530,"d":"1,530.00 €"}]
[null,"Skupna vsota",{"v":54000,"d":"54,000.00 €"},{"v":52200,"d":"52,200.00 €"},{"v":24000,"d":"24,000.00 €"},{"v":29000,"d":"29,000.00 €"},{"v":13200,"d":"13,200.00 €"},{"v":9000,"d":"9,000.00 €"},{"v":54360,"d":"54,360.00 €"},{"v":51540,"d":"51,540.00 €"},{"v":25650,"d":"25,650.00 €"},{"v":28900,"d":"28,900.00 €"},{"v":13400,"d":"13,400.00 €"},{"v":9060,"d":"9,060.00 €"}]